bitfinex/quotes_BTCUSD_20251207
["timestamp","ask_amount","ask_price","bid_price","bid_amount"]
[1765093420779,0.268503,89327.0,89326.0,0.05251239]
[1765093421366,0.182387,89327.0,89326.0,0.05251239]
[1765093421572,0.145938,89327.0,89326.0,0.05251239]
[1765093421779,0.130031,89327.0,89326.0,0.05251239]
[1765093422016,0.35392747,89327.0,89326.0,0.05251239]
[1765093423525,0.130031,89327.0,89326.0,0.05251239]
[1765093425412,0.03573879,89327.0,89326.0,0.27641136]
[1765093425638,0.00011816,89341.0,89340.0,0.22386389]
[1765093425840,0.00011816,89341.0,89340.0,0.24528389]
[1765093426226,0.00011816,89341.0,89340.0,0.27005389]
[1765093426424,0.00011816,89341.0,89340.0,0.30366731]
[1765093426987,0.00111816,89341.0,89340.0,0.30466731]
[1765093427589,0.00011816,89341.0,89340.0,0.30366731]
[1765093428008,0.00111816,89341.0,89340.0,0.30566731]
[1765093428491,0.00011816,89341.0,89340.0,0.30366731]
[1765093428679,0.00211816,89341.0,89340.0,0.30366731]
[1765093429835,0.00311816,89341.0,89340.0,0.30566731]
[1765093441226,0.00311816,89341.0,89340.0,0.08180342]
[1765093443704,0.00311816,89341.0,89340.0,0.1041898]
[1765093445319,0.00311816,89341.0,89340.0,0.08180342]
[1765093445918,0.00311816,89341.0,89340.0,0.1041898]
[1765093447401,0.00311816,89341.0,89340.0,0.04170342]
[1765093447572,0.24762416,89341.0,89340.0,0.00809]
[1765093452957,0.63476001,89341.0,89340.0,0.002]
[1765093453149,0.80752905,89341.0,89340.0,0.002]
[1765093453573,0.80552905,89341.0,89340.0,0.002]
[1765093453795,0.22389647,89327.0,89326.0,0.03685239]
[1765093454011,0.24157647,89327.0,89326.0,0.03685239]
[1765093454647,0.24157647,89327.0,89326.0,0.05252239]
[1765093455034,0.24257647,89327.0,89326.0,0.05452239]
[1765093455564,0.24257647,89327.0,89326.0,0.03027239]
[1765093455905,0.24257647,89327.0,89326.0,0.05452239]
[1765093456131,0.24457647,89327.0,89326.0,0.05952239]
[1765093456328,0.02068,89327.0,89326.0,0.05952239]
[1765093456966,0.24457647,89327.0,89326.0,0.05952239]
[1765093458690,0.24457647,89327.0,89326.0,0.01960239]
[1765093459158,0.24457647,89327.0,89326.0,0.05952239]
[1765093460552,0.23025325,89327.0,89326.0,0.05952239]
[1765093461649,0.01768,89327.0,89326.0,0.05952239]
[1765093461963,0.24157647,89327.0,89326.0,0.05952239]
[1765093462560,0.01768,89327.0,89326.0,0.05952239]
[1765093469997,0.01768,89327.0,89326.0,0.01960239]
[1765093470695,0.994743,89327.0,89326.0,0.00724239]
[1765093470845,1.01694698,89327.0,89326.0,0.00724239]
[1765093471043,1.05780698,89327.0,89326.0,0.00724239]
[1765093471243,1.03295698,89327.0,89326.0,0.00724239]
[1765093472296,1.010753,89327.0,89326.0,0.00724239]
[1765093472498,1.01694698,89327.0,89326.0,0.00724239]
[1765093476064,1.035603,89327.0,89326.0,0.00724239]
[1765093476361,1.05780698,89327.0,89326.0,0.00724239]
[1765093482622,1.06933698,89327.0,89326.0,0.00724239]
[1765093483167,1.06933698,89327.0,89326.0,0.00524239]
[1765093483509,1.07033698,89327.0,89326.0,0.00624239]
[1765093483843,1.07033698,89327.0,89326.0,0.00124239]
[1765093484260,1.07233698,89327.0,89326.0,0.00624239]
[1765093488520,1.03147698,89327.0,89326.0,0.00624239]
[1765093491864,1.07062698,89327.0,89326.0,0.00624239]
[1765093494436,1.04809698,89327.0,89326.0,0.00624239]
[1765093496478,1.07062698,89327.0,89326.0,0.00624239]
[1765093498597,1.13314997,89327.0,89326.0,0.00624239]
[1765093499609,1.13314997,89327.0,89326.0,0.00524239]
[1765093499610,1.13214997,89327.0,89326.0,0.00524239]
[1765093499817,1.13014997,89327.0,89326.0,0.00024239]
[1765093500016,1.13214997,89327.0,89326.0,0.00124239]
[1765093500221,1.13314997,89327.0,89326.0,0.00324239]
[1765093500479,1.14354076,89327.0,89326.0,0.00324239]
[1765093500853,1.16748109,89327.0,89326.0,0.00324239]
[1765093502122,1.27718615,89327.0,89326.0,0.00324239]
[1765093502655,1.28897615,89327.0,89326.0,0.00324239]
[1765093503582,1.17927109,89327.0,89326.0,0.00324239]
[1765093504426,1.17926294,89327.0,89326.0,0.00324239]
[1765093513595,1.15705896,89327.0,89326.0,0.00324239]
[1765093513748,1.17926294,89327.0,89326.0,0.00324239]
[1765093517179,1.15705896,89327.0,89326.0,0.00324239]
[1765093517396,1.17926294,89327.0,89326.0,0.00324239]
[1765093517970,1.28895594,89327.0,89326.0,0.00324239]
[1765093519387,1.17925088,89327.0,89326.0,0.00324239]
[1765093521367,1.17725088,89327.0,89326.0,0.00224239]
[1765093521561,1.17825088,89327.0,89326.0,0.00124239]
[1765093522097,1.17925088,89327.0,89326.0,0.00324239]
[1765093525162,1.20920793,89327.0,89326.0,0.00324239]
[1765093526807,1.17925088,89327.0,89326.0,0.00324239]
[1765093528102,1.15531055,89327.0,89326.0,0.00324239]
[1765093528302,1.17922151,89327.0,89326.0,0.00324239]
[1765093528577,1.15669151,89327.0,89326.0,0.00324239]
[1765093528806,1.13901151,89327.0,89326.0,0.00324239]
[1765093529004,1.18122151,89327.0,89326.0,0.00324239]
[1765093529981,1.27946061,89327.0,89326.0,0.00324239]
[1765093530384,1.21112149,89327.0,89326.0,0.00324239]
[1765093531378,1.18122151,89327.0,89326.0,0.00324239]
[1765093531785,1.18123639,89327.0,89326.0,0.00324239]
[1765093532147,1.21114633,89327.0,89326.0,0.00324239]
[1765093532576,1.18123639,89327.0,89326.0,0.00324239]
[1765093534229,1.29094145,89327.0,89326.0,0.00324239]
[1765093535910,1.22841846,89327.0,89326.0,0.00324239]
[1765093536139,1.29094145,89327.0,89326.0,0.00324239]
[1765093538463,1.18123646,89327.0,89326.0,0.00324239]
[1765093538863,0.0111982,89300.0,89297.0,0.02216839]
[1765093539072,0.05573732,89298.0,89297.0,0.02216839]
[1765093539603,0.05573732,89298.0,89297.0,0.03907737]
[1765093540177,0.05673732,89298.0,89297.0,0.04007737]
[1765093541274,2.05673732,89298.0,89297.0,0.04007737]
[1765093541516,2.05673732,89298.0,89297.0,0.01790898]
[1765093541838,2.05673732,89298.0,89297.0,0.00187898]
[1765093541839,2.38173732,89298.0,89297.0,0.00187898]
[1765093542001,2.45529239,89298.0,89297.0,0.00187898]
[1765093542331,2.47749637,89298.0,89297.0,0.00187898]
[1765093542503,2.49346923,89298.0,89297.0,0.00087898]
[1765093542829,2.51843923,89298.0,89297.0,0.00087898]
[1765093543862,2.51643923,89298.0,89297.0,0.00087898]
[1765093544065,2.51843923,89298.0,89297.0,0.00087898]
[1765093544263,2.49446923,89298.0,89297.0,0.00087898]
[1765093546496,2.40555416,89298.0,89297.0,0.00087898]
[1765093549642,2.44488416,89298.0,89297.0,0.00087898]
[1765093551571,2.42091416,89298.0,89297.0,0.00087898]
[1765093552523,2.40555416,89298.0,89297.0,0.00087898]
[1765093553094,2.42952416,89298.0,89297.0,0.00087898]
[1765093553301,2.4790133,89298.0,89297.0,0.00087898]
[1765093553643,2.4550433,89298.0,89297.0,0.00087898]
[1765093559824,2.4778433,89298.0,89297.0,0.00087898]
[1765093559952,2.4938733,89298.0,89297.0,0.00087898]
[1765093562212,2.44438416,89298.0,89297.0,0.00087898]
[1765093562731,2.50690715,89298.0,89297.0,0.00087898]
[1765093562877,2.51866715,89298.0,89297.0,0.00087898]
[1765093563312,2.49646317,89298.0,89297.0,0.00087898]
[1765093563515,2.51766715,89298.0,89297.0,0.00087898]
[1765093563691,2.62737221,89298.0,89297.0,0.00087898]
[1765093563912,2.62637221,89298.0,89297.0,0.00087898]
[1765093564108,2.62837221,89298.0,89297.0,0.00087898]
[1765093564311,2.62737221,89298.0,89297.0,0.00087898]
[1765093564653,2.62937221,89298.0,89297.0,0.00087898]
[1765093565129,2.51966715,89298.0,89297.0,0.00087898]
[1765093565762,2.51766715,89298.0,89297.0,0.00087898]
[1765093566195,2.51966715,89298.0,89297.0,0.00087898]
[1765093566934,2.55391151,89298.0,89297.0,0.00087898]
[1765093574316,2.58376862,89298.0,89297.0,0.00087898]
[1765093574810,2.69347368,89298.0,89297.0,0.00087898]
[1765093575300,2.66361657,89298.0,89297.0,0.00087898]
[1765093576886,2.66161657,89298.0,89297.0,0.00087898]
[1765093577082,2.65961657,89298.0,89297.0,0.00087898]
[1765093577281,2.66861657,89298.0,89297.0,0.00087898]
[1765093578556,2.65961657,89298.0,89297.0,0.00087898]
[1765093578739,2.66561657,89298.0,89297.0,0.00087898]
[1765093579864,2.93847368,89298.0,89297.0,0.00087898]
[1765093580047,2.90861657,89298.0,89297.0,0.00087898]
[1765093581522,2.90261657,89298.0,89297.0,0.00087898]
[1765093581728,2.90861657,89298.0,89297.0,0.00087898]
[1765093581909,2.91261657,89298.0,89297.0,0.00087898]
[1765093584701,2.91261077,89298.0,89297.0,0.00087898]
[1765093585737,2.93029077,89298.0,89297.0,0.00087898]
[1765093585937,2.82058571,89298.0,89297.0,0.00087898]
[1765093589166,2.85042108,89298.0,89297.0,0.00087898]
[1765093592066,2.85045617,89298.0,89297.0,0.00087898]
[1765093593428,2.82058571,89298.0,89297.0,0.00087898]
[1765093593867,2.11334874,89298.0,89297.0,0.00087898]
[1765093594114,2.15323272,89298.0,89297.0,0.00087898]
[1765093594324,2.53875571,89298.0,89297.0,0.00087898]
[1765093594761,2.53475571,89298.0,89297.0,0.00087898]
[1765093594991,2.51255173,89298.0,89297.0,0.00087898]
[1765093595220,2.50955173,89298.0,89297.0,0.00087898]
[1765093595445,2.51255173,89298.0,89297.0,0.00087898]
[1765093595725,2.51255173,89298.0,89297.0,0.26514066]
[1765093595726,2.006,89298.0,89297.0,0.26514066]
[1765093596830,2.003,89298.0,89297.0,0.26514066]
[1765093597054,2.0,89298.0,89297.0,0.26514066]
[1765093597270,2.002,89298.0,89297.0,0.26614066]
[1765093597495,2.003,89298.0,89297.0,0.26714066]
[1765093598572,2.103,89298.0,89297.0,0.26714066]
[1765093611611,2.103,89298.0,89297.0,0.04316898]
[1765093612587,2.103,89298.0,89297.0,0.06556614]
[1765093613436,2.103,89298.0,89297.0,0.04316898]
[1765093619583,2.103,89298.0,89297.0,0.07679853]
[1765093626725,0.103,89298.0,89297.0,0.07679853]
[1765093628953,0.103,89298.0,89297.0,0.04316898]
[1765093633889,0.103,89298.0,89297.0,0.08786614]
[1765093634085,0.103,89298.0,89297.0,0.1482308]
[1765093634285,0.103,89298.0,89297.0,0.08786614]
[1765093634649,0.102,89298.0,89297.0,0.08686614]
[1765093634852,0.1,89298.0,89297.0,0.08586614]
[1765093635066,0.01768,89322.0,89321.0,0.22391151]
[1765093635265,0.209945,89322.0,89321.0,0.0218]
[1765093635466,0.209945,89322.0,89321.0,0.04608]
[1765093635903,0.192265,89322.0,89321.0,0.04608]
[1765093636264,0.01119507,89325.0,89321.0,0.05727557]
[1765093636462,0.4779762,89325.0,89324.0,0.01583]
[1765093636603,0.43998113,89325.0,89324.0,0.01583]
[1765093636807,0.11698113,89325.0,89324.0,0.04011]
[1765093637009,0.00011813,89325.0,89324.0,0.04011]
[1765093637457,0.00011813,89325.0,89324.0,0.26401398]
[1765093637660,0.00711813,89325.0,89324.0,0.26601398]
[1765093638090,0.01011813,89325.0,89324.0,0.26701398]
[1765093638525,0.00311813,89325.0,89324.0,0.26501398]
[1765093638701,0.00711813,89325.0,89324.0,0.26601398]
[1765093639741,0.00011813,89325.0,89324.0,0.26401398]
[1765093639969,0.00111813,89325.0,89324.0,0.26501398]
[1765093640561,0.00011813,89325.0,89324.0,0.26401398]
[1765093640783,0.00411813,89325.0,89324.0,0.26501398]
[1765093643423,0.00311813,89325.0,89324.0,0.26501398]
[1765093643592,0.00011813,89325.0,89324.0,0.26401398]
[1765093643823,0.00111813,89325.0,89324.0,0.26601398]
[1765093645603,0.00111813,89325.0,89324.0,0.28831398]
[1765093646034,0.01119206,89349.0,89345.0,0.2350435]
[1765093646180,0.542288,89346.0,89345.0,0.2350435]
[1765093646396,0.36106,89347.0,89345.0,0.2350435]
[1765093646608,0.36106,89347.0,89346.0,0.01583]
[1765093646857,0.510348,89348.0,89346.0,0.04011]
[1765093647061,0.510348,89348.0,89346.0,0.02428]
[1765093647226,0.48213,89348.0,89347.0,0.05189]
[1765093647429,0.273163,89350.0,89347.0,0.06308231]
[1765093647632,0.27338,89349.0,89348.0,0.02428]
[1765093648203,0.27338,89349.0,89348.0,0.04011]
[1765093649798,0.256189,89349.0,89348.0,0.04011]
[1765093650209,0.259189,89349.0,89348.0,0.04111]
[1765093650438,0.267189,89349.0,89348.0,0.04211]
[1765093650641,0.264189,89349.0,89348.0,0.04111]
[1765093650795,0.256189,89349.0,89348.0,0.04011]
[1765093650992,0.262189,89349.0,89348.0,0.04111]
[1765093651719,0.264189,89349.0,89348.0,0.04211]
[1765093656228,0.48803034,89349.0,89348.0,0.04211]
[1765093656473,0.4896432,89349.0,89348.0,0.002]
[1765093657241,0.4896432,89349.0,89348.0,0.04211]
[1765093658924,0.4896432,89349.0,89348.0,0.002]
[1765093659524,0.4896432,89349.0,89348.0,0.01783]
[1765093659832,0.4896432,89349.0,89348.0,0.04211]
[1765093665332,0.179734,89349.0,89348.0,0.04211]
[1765093665539,0.008,89349.0,89348.0,0.04211]
[1765093665913,0.170515,89349.0,89348.0,0.04211]
[1765093666144,0.008,89349.0,89348.0,0.04211]
[1765093666315,0.008,89349.0,89348.0,0.06449438]
[1765093666519,0.008,89349.0,89348.0,0.04211]
[1765093671490,0.008,89349.0,89348.0,0.06449438]
[1765093671667,0.008,89349.0,89348.0,0.04211]
[1765093676688,0.008,89349.0,89348.0,0.08679438]
[1765093678107,0.006,89349.0,89348.0,0.08579438]
[1765093678335,0.00011822,89350.0,89349.0,0.24614134]
[1765093678468,0.00011822,89350.0,89349.0,0.28650134]
[1765093679651,0.00611822,89350.0,89349.0,0.28750134]
[1765093680051,0.00811822,89350.0,89349.0,0.28750134]
[1765093681736,0.00811822,89350.0,89349.0,0.26520134]
[1765093701825,0.00811822,89350.0,89349.0,0.28750134]
[1765093702317,0.00811822,89350.0,89349.0,0.26520134]
[1765093707360,0.00811822,89350.0,89349.0,0.27692134]
[1765093712864,0.00811822,89350.0,89349.0,0.29922134]
[1765093713848,0.00611822,89350.0,89349.0,0.29922134]
[1765093714057,0.00011822,89350.0,89349.0,0.29822134]
[1765093714270,0.00611822,89350.0,89349.0,0.29922134]
[1765093716307,0.00611822,89350.0,89349.0,0.35963129]
[1765093716893,0.00611822,89350.0,89349.0,0.33733129]
[1765093717209,0.00611822,89350.0,89349.0,0.35497129]
[1765093718410,0.00611822,89350.0,89349.0,0.37727129]
[1765093718857,0.00611822,89350.0,89349.0,0.35497129]
[1765093721483,0.00611822,89350.0,89349.0,0.36616122]
[1765093723370,0.00611822,89350.0,89349.0,0.38846122]
[1765093726001,0.00611822,89350.0,89349.0,0.34852122]
[1765093726199,0.00611822,89350.0,89349.0,0.29456134]
[1765093726499,0.00611822,89350.0,89349.0,0.37727129]
[1765093733820,0.00611822,89350.0,89349.0,0.31686134]
[1765093735026,0.00611822,89350.0,89349.0,0.32805052]
[1765093736624,0.00611822,89350.0,89349.0,0.30575052]
[1765093738785,0.00611822,89350.0,89349.0,0.32805052]
[1765093740440,0.00611822,89350.0,89349.0,0.28811052]
[1765093740647,0.00611822,89350.0,89349.0,0.27692134]
[1765093750209,0.00611822,89350.0,89349.0,0.31053228]
[1765093750862,0.323,89371.0,89368.0,0.01118968]
[1765093751094,0.22378623,89371.0,89370.0,0.02551]
[1765093751364,0.22378623,89371.0,89370.0,0.04866]
[1765093751803,0.22539909,89371.0,89370.0,0.04866]
[1765093752488,0.22939909,89371.0,89370.0,0.04866]
[1765093753027,0.23539909,89371.0,89370.0,0.04866]
[1765093753189,0.22839909,89371.0,89370.0,0.04966]
[1765093753595,0.23639909,89371.0,89370.0,0.05066]
[1765093755215,0.23639909,89371.0,89370.0,0.02751]
[1765093755404,0.23639909,89371.0,89370.0,0.01156]
[1765093755805,0.29812307,89371.0,89370.0,0.002]
[1765093756565,0.27407307,89371.0,89370.0,0.002]
[1765093757499,0.25860307,89371.0,89370.0,0.002]
[1765093758165,0.23639909,89371.0,89370.0,0.002]
[1765093758393,0.23639909,89371.0,89370.0,0.01777]
[1765093758596,0.01261286,89371.0,89370.0,0.04231]
[1765093758928,0.011,89371.0,89370.0,0.04231]
[1765093760141,0.011,89371.0,89370.0,0.26609874]
[1765093760353,0.011,89371.0,89370.0,0.28839874]
[1765093760675,0.011,89371.0,89370.0,0.32200105]
[1765093760871,0.003,89371.0,89370.0,0.32100105]
[1765093761076,0.01118768,89384.0,89381.0,0.01118806]
[1765093761255,0.01130588,89384.0,89383.0,0.02711]
[1765093761638,0.0001182,89384.0,89383.0,0.05165]
[1765093762275,0.0031182,89384.0,89383.0,0.05165]
[1765093763198,0.0001182,89384.0,89383.0,0.05165]
[1765093763379,0.0071182,89384.0,89383.0,0.05265]
[1765093764609,0.0101182,89384.0,89383.0,0.05365]
[1765093769970,0.0101182,89384.0,89383.0,0.07595]
[1765093770173,0.0101182,89384.0,89383.0,0.10954908]
[1765093770533,0.0101182,89384.0,89383.0,0.08724908]
[1765093771925,0.0071182,89384.0,89383.0,0.08624908]
[1765093772128,0.0001182,89384.0,89383.0,0.08524908]
[1765093772346,0.0021182,89384.0,89383.0,0.08524908]
[1765093772507,0.0081182,89384.0,89383.0,0.08624908]
[1765093772711,0.0021182,89384.0,89383.0,0.08524908]
[1765093773115,0.0081182,89384.0,89383.0,0.08624908]
[1765093773312,0.0021182,89384.0,89383.0,0.12992469]
[1765093773536,0.0001182,89384.0,89383.0,0.12992469]
[1765093773770,0.0051182,89384.0,89383.0,0.13092469]
[1765093774098,0.0021182,89384.0,89383.0,0.12992469]
[1765093774465,0.0001182,89384.0,89383.0,0.12992469]
[1765093774660,0.0001182,89384.0,89383.0,0.13092469]
[1765093775259,0.0051182,89384.0,89383.0,0.13192469]
[1765093775667,0.0001182,89384.0,89383.0,0.13092469]
[1765093776094,0.0021182,89384.0,89383.0,0.13092469]
[1765093776978,0.00231716,89387.0,89386.0,0.0223]
[1765093777164,0.00231716,89387.0,89386.0,0.06044486]
[1765093777372,0.00231716,89387.0,89386.0,0.08498486]
[1765093777587,0.00231716,89387.0,89386.0,0.11857807]
[1765093777855,0.00231716,89387.0,89386.0,0.34232675]
[1765093777991,0.00231716,89387.0,89386.0,0.31995189]
[1765093778730,0.00531716,89387.0,89386.0,0.31995189]
[1765093782063,0.00531716,89387.0,89386.0,0.33759189]
[1765093782276,0.00531716,89387.0,89386.0,0.31995189]
[1765093782442,0.00531716,89387.0,89386.0,0.33759189]
[1765093783465,0.00531716,89387.0,89386.0,0.33859189]
[1765093783899,0.0004,89400.0,89399.0,0.22371614]
[1765093784036,0.0004,89400.0,89399.0,0.24027614]
[1765093784233,0.0004,89400.0,89399.0,0.26372614]
[1765093784432,0.0004,89400.0,89399.0,0.27491007]
[1765093785768,0.0044,89400.0,89399.0,0.29721007]
[1765093785969,0.0064,89400.0,89399.0,0.29721007]
[1765093787193,0.0064,89400.0,89399.0,0.27491007]
[1765093789434,0.0067934,89400.0,89399.0,0.27491007]
[1765093800216,0.0067934,89400.0,89399.0,0.29721007]
[1765093800818,0.0067934,89400.0,89399.0,0.27491007]
[1765093811054,0.0067934,89400.0,89399.0,0.26372614]
[1765093812551,0.0067934,89400.0,89399.0,0.28602614]
[1765093813715,0.0007934,89400.0,89399.0,0.28602614]
[1765093813917,0.0017934,89400.0,89399.0,0.28602614]
[1765093814120,0.0027934,89400.0,89399.0,0.28602614]
[1765093814320,0.0027934,89400.0,89399.0,0.29721007]
[1765093814677,0.0027934,89400.0,89399.0,0.31485007]
[1765093815705,0.0017934,89400.0,89399.0,0.31485007]
[1765093816108,0.0017934,89400.0,89399.0,0.31585007]
[1765093816333,0.0007934,89400.0,89399.0,0.31585007]
[1765093816716,0.0004,89410.0,89409.0,0.22369112]
[1765093817050,0.0004,89410.0,89409.0,0.26164112]
[1765093817209,0.0004,89410.0,89409.0,0.28642112]
[1765093818312,0.0014,89410.0,89409.0,0.28642112]
[1765093818644,0.0034,89410.0,89409.0,0.28642112]
[1765093819486,0.0014,89410.0,89409.0,0.28642112]
[1765093820029,0.0004,89410.0,89409.0,0.28642112]
[1765093820233,0.0004,89410.0,89409.0,0.28742112]
[1765093820653,0.0004,89410.0,89409.0,0.26512112]
[1765093820855,0.0004,89410.0,89409.0,0.28276112]
[1765093821183,0.0004,89410.0,89409.0,0.3095392]
[1765093822467,0.00070256,89410.0,89409.0,0.3095392]
[1765093822635,0.00070256,89410.0,89409.0,0.36991912]
[1765093824200,0.00070256,89410.0,89409.0,0.3095392]
[1765093825249,0.00070256,89410.0,89409.0,0.2872392]
[1765093825419,0.0004,89420.0,89419.0,0.24596611]
[1765093825622,0.00079416,89420.0,89419.0,0.30403611]
[1765093825903,0.00109668,89420.0,89419.0,0.30403611]
[1765093826232,0.00109668,89420.0,89419.0,0.30851345]
[1765093826833,0.00109668,89420.0,89419.0,0.31251345]
[1765093827359,0.00209668,89420.0,89419.0,0.31451345]
[1765093832950,0.00209668,89420.0,89419.0,0.29687345]
[1765093833151,0.00209668,89420.0,89419.0,0.31451345]
[1765093834177,0.00209668,89420.0,89419.0,0.29687345]
[1765093834396,0.00209668,89420.0,89419.0,0.31451345]
[1765093836188,0.0004,89430.0,89429.0,0.2459411]
[1765093836382,0.00051815,89430.0,89429.0,0.2615911]
[1765093836603,0.00051815,89430.0,89429.0,0.2863711]
[1765093836604,0.00082061,89430.0,89429.0,0.2863711]
[1765093836853,0.00082061,89430.0,89429.0,0.31994777]
[1765093837403,0.00182061,89430.0,89429.0,0.31994777]
[1765093837838,0.00282061,89430.0,89429.0,0.31994777]
[1765093838484,0.00282061,89430.0,89429.0,0.33758777]
[1765093838671,0.00082061,89430.0,89429.0,0.31528777]
[1765093839017,0.00182061,89430.0,89429.0,0.32528777]
[1765093839383,0.00182061,89430.0,89429.0,0.34758777]
[1765093841255,0.00182061,89430.0,89429.0,0.32528777]
[1765093841458,0.00182061,89430.0,89429.0,0.34758777]
[1765093842220,0.00182061,89430.0,89429.0,0.2917111]
[1765093842423,0.00182061,89430.0,89429.0,0.2740711]
[1765093846911,0.00182061,89430.0,89429.0,0.2963711]
[1765093849635,0.00182061,89430.0,89429.0,0.2740711]
[1765093851100,0.00182061,89430.0,89429.0,0.2963711]
[1765093851417,0.00182061,89430.0,89429.0,0.39022253]
[1765093851623,0.00182061,89430.0,89429.0,0.32994777]
[1765093852456,6.1e-07,89430.0,89429.0,0.32994777]
[1765093852833,0.0004,89440.0,89439.0,0.22361609]
[1765093853055,0.0004,89440.0,89439.0,0.26567609]
[1765093853265,0.0004,89440.0,89439.0,0.28851609]
[1765093853461,0.0004,89440.0,89439.0,0.29969489]
[1765093853662,0.0004,89440.0,89439.0,0.32199489]
[1765093854237,0.0004,89440.0,89439.0,0.32799489]
[1765093855606,0.0004,89440.0,89439.0,0.30569489]
[1765093856379,0.0004,89440.0,89439.0,0.32799489]
[1765093857913,0.0004,89440.0,89439.0,0.28805489]
[1765093858112,0.0004,89440.0,89439.0,0.27687609]
[1765093858415,0.00070241,89440.0,89439.0,0.27687609]
[1765093863160,0.00070241,89440.0,89439.0,0.27087609]
[1765093863323,0.00370241,89440.0,89439.0,0.27087609]
[1765093863666,0.00470241,89440.0,89439.0,0.27087609]
[1765093869473,0.00470241,89440.0,89439.0,0.29317609]
[1765093869895,0.00470241,89440.0,89439.0,0.30435452]
[1765093872213,0.00470241,89440.0,89439.0,0.29317609]
[1765093875327,0.00070241,89440.0,89439.0,0.29317609]
[1765093875732,0.00070241,89440.0,89439.0,0.29517609]
[1765093876179,0.00070241,89440.0,89439.0,0.35545975]
[1765093878543,0.00070241,89440.0,89439.0,0.29517609]
[1765093878766,0.0004,89450.0,89449.0,0.24589109]
[1765093878965,0.0004,89450.0,89449.0,0.27917109]
[1765093879169,0.0004,89450.0,89449.0,0.30229109]
[1765093880028,0.0014,89450.0,89449.0,0.30229109]
[1765093880260,0.0054,89450.0,89449.0,0.30229109]
[1765093881590,0.0004,89450.0,89449.0,0.30229109]
[1765093881794,0.0034,89450.0,89449.0,0.30229109]
[1765093882504,0.0034,89450.0,89449.0,0.36708936]
[1765093882858,0.0034,89450.0,89449.0,0.30676693]
[1765093884338,0.00370236,89450.0,89449.0,0.30676693]
[1765093887525,0.00370236,89450.0,89449.0,0.36702218]
[1765093889357,0.00370236,89450.0,89449.0,0.30676693]
[1765093891015,0.00370236,89450.0,89449.0,0.28446693]
[1765093891356,0.00370236,89450.0,89449.0,0.30676693]
[1765093892874,2.36e-06,89450.0,89449.0,0.30676693]
[1765093893076,0.0004,89460.0,89459.0,0.2458661]
[1765093893297,0.00051808,89460.0,89459.0,0.2615061]
[1765093893499,0.00051808,89460.0,89459.0,0.2846261]
[1765093894243,0.00251808,89460.0,89459.0,0.2846261]
[1765093894443,0.00751808,89460.0,89459.0,0.2846261]
[1765093894673,0.00251808,89460.0,89459.0,0.2846261]
[1765093894831,0.00051808,89460.0,89459.0,0.2846261]
[1765093895010,0.00351808,89460.0,89459.0,0.2846261]
[1765093896524,0.00351808,89460.0,89459.0,0.3022661]
[1765093897261,0.00351808,89460.0,89459.0,0.2623261]
[1765093897462,0.23474703,89458.0,89455.0,0.01211]
[1765093897622,0.2235736,89456.0,89455.0,0.01211]
[1765093897821,0.01117892,89454.0,89448.0,0.01016]
[1765093898030,0.22359109,89449.0,89448.0,0.01016]
[1765093898478,0.22359109,89449.0,89448.0,0.0258]
[1765093898836,0.22359109,89449.0,89448.0,0.04892]
[1765093900056,0.22359109,89449.0,89448.0,0.04992]
[1765093900587,0.22359109,89449.0,89448.0,0.05092]
[1765093900817,0.0111793,89451.0,89448.0,0.05092]
[1765093900967,0.0111793,89451.0,89450.0,0.01564]
[1765093901355,0.0111793,89451.0,89450.0,0.04005]
[1765093903281,0.06691662,89451.0,89450.0,0.04005]
[1765093903658,0.06691662,89451.0,89450.0,0.04105]
[1765093907218,0.05573732,89451.0,89450.0,0.04105]
[1765093909150,0.29435341,89451.0,89450.0,0.001]
[1765093909278,0.74358038,89451.0,89450.0,0.001]
[1765093909479,0.7213764,89451.0,89450.0,0.001]
[1765093909887,0.74358038,89451.0,89450.0,0.001]
[1765093910423,0.74358038,89451.0,89440.0,0.000985]
[1765093910424,0.22361109,89441.0,89440.0,0.000985]
[1765093911981,0.22361109,89441.0,89440.0,0.041745]
[1765093912788,0.22661109,89441.0,89440.0,0.041745]
[1765093913344,0.003,89441.0,89440.0,0.041745]
[1765093913703,0.005,89441.0,89440.0,0.041745]
[1765093916401,0.22861109,89441.0,89440.0,0.041745]
[1765093918813,0.22861109,89441.0,89440.0,0.017335]
[1765093919222,0.22861109,89441.0,89440.0,0.000985]
[1765093919947,0.27887109,89441.0,89440.0,0.000985]
[1765093920490,0.30107507,89441.0,89440.0,0.000985]
[1765093923649,0.61951109,89441.0,89440.0,0.000985]
[1765093923826,0.70423806,89441.0,89440.0,0.000985]
[1765093924227,0.74544766,89441.0,89440.0,0.000985]
[1765093924409,0.70423806,89441.0,89440.0,0.000985]
[1765093933569,0.22861109,89441.0,89440.0,0.000985]
[1765093933773,0.24625109,89441.0,89440.0,0.000985]
[1765093933942,0.56925109,89441.0,89440.0,0.000985]
[1765093935930,0.24625109,89441.0,89440.0,0.000985]
[1765093937178,0.005,89441.0,89440.0,0.039955]
[1765093937915,0.27934109,89441.0,89440.0,0.000985]
[1765093938115,0.70270806,89441.0,89440.0,0.000985]
[1765093938331,2.78876966,89441.0,89440.0,0.000985]
[1765093938537,2.78576966,89441.0,89440.0,0.000985]
[1765093938737,2.69929366,89441.0,89440.0,0.000985]
[1765093938939,2.61223206,89441.0,89440.0,0.000985]
[1765093939319,2.61623206,89441.0,89440.0,0.000985]
[1765093939502,2.61323206,89441.0,89440.0,0.000985]
[1765093939702,2.61223206,89441.0,89440.0,0.000985]
[1765093939914,2.61723206,89441.0,89440.0,0.000985]
[1765093940103,2.62023206,89441.0,89440.0,0.001985]
[1765093940343,2.72993712,89441.0,89440.0,0.001985]
[1765093940931,1.76704306,89441.0,89440.0,0.001985]
[1765093941130,1.52872408,89441.0,89440.0,0.001985]
[1765093941336,1.55092806,89441.0,89440.0,0.001985]
[1765093941833,1.52872408,89441.0,89440.0,0.001985]
[1765093943237,1.55092806,89441.0,89440.0,0.001985]
[1765093949185,1.56135184,89441.0,89440.0,0.001985]
[1765093954604,1.53914786,89441.0,89440.0,0.001985]
[1765093954932,0.77368208,89441.0,89440.0,0.001985]
[1765093955118,0.66200408,89441.0,89440.0,0.001985]
[1765093955328,0.26062109,89441.0,89440.0,0.001985]
[1765093957622,0.24925109,89441.0,89440.0,0.001985]
[1765093960464,0.75982709,89441.0,89440.0,0.001985]
[1765093960846,0.79918709,89441.0,89440.0,0.001985]
[1765093963276,0.82139107,89441.0,89440.0,0.001985]
[1765093963683,1.29441514,89441.0,89440.0,0.001985]
[1765093963882,1.21734542,89441.0,89440.0,0.001985]
[1765093964944,1.2413796,89441.0,89440.0,0.001985]
[1765093967601,1.27140823,89441.0,89440.0,0.001985]